Cogmind - Beta 9.2 @@@ ROGUE MODE // 2019.12.09 @ 01:57:40 Player: Trione Result: Destroyed by D-53 Grenadier with Mini Grenade Launcher Performance ------------- Evolutions (0) 0 Regions Visited (4) 800 Robots Destroyed (35) 175 Value Destroyed (295) 295 Prototype IDs (22) 440 Alien Tech Used (0) 0 Bonus (-343) -343 TOTAL SCORE: 1367 Bonus ------- Friendly Fire -343 Cogmind --------- Core Integrity 0/250 Matter 225/300 Energy 230/250 System Corruption 0% Temperature Cool (0) Movement Rolling (100) Ox1 Location -9/Mines Parts ------- > --- POWER (1) -------- Ion Engine > --- PROPULSION (2) --- Wheel Compact Wheel > --- UTILITY (2) ------ Large Storage Unit Large Storage Unit > --- WEAPON (2) ------- Light Assault Rifle > --- INVENTORY (16) --- Light Angular Momentum Engine Light Treads Light Treads Light Treads Small Storage Unit High-capacity Matter Pod (200) Light Armor Plating Light Armor Plating Trap Reconfigurator Medium Laser Light Assault Rifle Light Assault Rifle Grenade Launcher Grenade Launcher Makeshift Hammer Makeshift Axe Peak State ------------ > --- POWER ------------ Ion Engine > --- PROPULSION ------- Wheel Compact Wheel > --- UTILITY ---------- Large Storage Unit Large Storage Unit > --- WEAPON ----------- Medium Laser Makeshift Laser > --- INVENTORY -------- Light Angular Momentum Engine Light Treads Light Treads Small Storage Unit High-capacity Matter Pod Light Armor Plating Light Armor Plating Medium Laser Light Assault Rifle Light Assault Rifle Light Assault Rifle Grenade Launcher Grenade Launcher Makeshift Axe [Rating: 12] Favorites ----------- Power Ion Engine Engine Ion Engine Propulsion Wheel Wheel Wheel Utility Large Storage Unit Storage Large Storage Unit Weapon Medium Laser Energy Gun Medium Laser Ballistic Gun Light Assault Rifle Launcher Grenade Launcher Build | -11 -10 -10 -10 -9 ------- Run | Scr Mat Min Exi Min Slots Evolved . | . . . . . Power . | . . . . . Propulsion . | . . . . . Utility . | . . . . . Weapon . | . . . . . Parts Attached 17 | 6 3 4 2 2 Power 2 | 1 . 1 . . Engine 2 | 1 . 1 . . Core . | . . . . . Reactor . | . . . . . Propulsion 2 | 2 . . . . Treads . | . . . . . Leg . | . . . . . Wheel 2 | 2 . . . . Hover . | . . . . . Flight . | . . . . . Utility 3 | 1 2 . . . Device . | . . . . . Storage 3 | 1 2 . . . Processor . | . . . . . Hackware . | . . . . . Protection . | . . . . . Artifact . | . . . . . Weapon 10 | 2 1 3 2 2 Energy Gun 4 | 2 . 1 1 . Energy Cannon . | . . . . . Ballistic Gun 4 | . 1 1 1 1 Ballistic Cannon . | . . . . . Launcher 2 | . . 1 . 1 Special Weapon . | . . . . . Impact Weapon . | . . . . . Slashing Weapon . | . . . . . Piercing Weapon . | . . . . . Special Melee Weapon . | . . . . . Unidentified Prototypes . | . . . . . Parts Lost 5 | . 1 3 . 1 Power 1 | . . 1 . . Propulsion . | . . . . . Utility . | . . . . . Weapon 4 | . 1 2 . 1 Highest Loss Streak 3 | . 1 3 . 1 Average Slot Usage (%) 98 | . 98 100 97 95 Engine 14 | . 14 14 14 14 Wheel 28 | . 28 28 28 28 Storage 27 | . 27 28 28 28 Energy Gun 17 | . 22 14 17 9 Ballistic Gun 9 | . 5 14 7 9 Naked Turns . | . . . . . Heaviest Build 41 | 11 40 40 41 40 Greatest Support 26 | 26 26 26 26 26 Greatest Overweight (x) 1 | . 1 1 1 1 Average Overweight (x) . | . . 1 1 1 Largest Inventory Capacity 16 | 6 16 16 16 16 Average Capacity 15 | 5 15 16 16 16 Most Carried 16 | 4 11 11 16 16 Average Carried 11 | 2 9 9 14 16 Final Capacity 16 | 6 16 16 16 16 Final Carried 16 | 4 11 11 16 16 Class Distribution -------------------- 85% | Mutant 14% | Commander-Mutant Dominant Class ---------------- Mutant | -10/Materials Mutant | -10/Mines Mutant | -10/Exiles Commander-Mutant | -9/Mines Resources | -11 -10 -10 -10 -9 ----------- Run | Scr Mat Min Exi Min Matter Collected 417 | 260 60 77 20 . Remotely . | . . . . . Salvage Created 829 | 86 313 203 152 75 Parts 30 | . 10 15 5 . Haulers Intercepted . | . . . . . Recyclers Shooed 1 | . . 1 . . Parts Field Recycled . | . . . . . Retrieved Matter . | . . . . . Parts Self-Destructed . | . . . . . Prevented . | . . . . . Kills | -11 -10 -10 -10 -9 ------- Run | Scr Mat Min Exi Min Combat Hostiles Destroyed 28 | . 4 5 . 19 Guns 9 | . 4 5 . . AOE 19 | . . . . 19 Classes Destroyed 6 | 1 2 2 . 1 Worker 1 | . . 1 . . Recycler 3 | 1 2 . . . Operator 1 | . 1 . . . Swarmer 3 | . . 3 . . Grunt 7 | . 4 2 . 1 Assembled 19 | . . . . 19 Thug 1 | . . 1 . . Best Kill Streak 19 | 1 5 3 . 19 Combat Bots Only 19 | . 3 3 . 19 Max Kills in Single Turn 5 | 1 1 1 . 5 Gunslinging . | . . . . . Exploded 5 | . . . . 5 Melee . | . . . . . Uniques/NPCs Destroyed . | . . . . . Combat | -11 -10 -10 -10 -9 -------- Run | Scr Mat Min Exi Min Damage Taken 776 | . 271 256 . 249 Core 258 | . 61 53 . 144 Absorbed by Shields . | . . . . . Core Remaining (%) 100 | 100 . . . . Volleys Fired 65 | 4 19 26 10 6 Largest 2 | 2 2 2 2 1 Hottest 100 | 80 80 70 100 30 Shots Fired 122 | 8 38 50 20 6 Gun 116 | 8 38 50 20 . Cannon . | . . . . . Launcher 6 | . . . . 6 Special . | . . . . . Kinetic 36 | . 10 26 . . Thermal 80 | 8 28 24 20 . Explosive 6 | . . . . 6 Electromagnetic . | . . . . . Robot Hit Streak 17 | 7 13 10 17 1 Robot Miss Streak 4 | . 2 4 2 1 Penetration Max . | . . . . . Secondary Targets 2 | . 2 . . . Max Gunslinging Chain 1 | . 1 . . . Shots Hit Robots 89 | 7 28 36 17 1 Core Hits 75 | 2 15 15 5 38 Critical Hits 1 | . 1 . . . Critical Kills 1 | . 1 . . . Critical Parts Destroyed . | . . . . . Melee Attacks . | . . . . . Impact . | . . . . . Slashing . | . . . . . Piercing . | . . . . . Sneak Attacks . | . . . . . Combat Hostiles . | . . . . . Follow-up Attacks . | . . . . . Damage Inflicted 2154 | 79 354 441 286 994 Guns 1160 | 79 354 441 286 . Cannons . | . . . . . Explosions 994 | . . . . 994 Melee . | . . . . . Ramming . | . . . . . Kinetic 303 | . 96 207 . . Thermal 857 | 79 258 234 286 . Explosive 994 | . . . . 994 Electromagnetic . | . . . . . Impact . | . . . . . Slashing . | . . . . . Piercing . | . . . . . Highest Corruption . | . . . . . Average Corruption . | . . . . . Corruption Purged . | . . . . . Overload Shots . | . . . . . Overflow Damage 4 | . . . . 4 Projectiles . | . . . . . Explosions 4 | . . . . 4 Melee . | . . . . . Knockbacks . | . . . . . Impact . | . . . . . Kinetic . | . . . . . Secondary . | . . . . . Self-Inflicted Damage 61 | . . . . 61 Shots 2 | . . . . 2 Rammed . | . . . . . Targets Rammed . | . . . . . Kicked . | . . . . . Crushed . | . . . . . Highest Temperature 214 | 72 162 131 214 15 Average Temperature 69 | 37 81 59 86 10 Received Heat Transfer 287 | . 150 117 . 20 Siege Activations . | . . . . . Robots Corrupted . | . . . . . Combat Hostiles . | . . . . . Parts Fried . | . . . . . Impact Corruptions . | . . . . . Robots Melted . | . . . . . Combat Hostiles . | . . . . . Parts Melted 4 | 1 . 1 2 . Heat Transferred 2083 | 175 575 667 666 . Parts Sabotaged . | . . . . . Parts Stolen . | . . . . . Parts Stripped . | . . . . . Power Chain Reactions . | . . . . . Missiles Intercepted . | . . . . . Alert | -11 -10 -10 -10 -9 ------- Run | Scr Mat Min Exi Min Peak Influence 147 | 5 134 147 . . Average Influence 58 | 1 54 71 . . Maximum Alert Level . | . . . . . Low Security (%) 100 | 100 100 100 . 100 Level 1 . | . . . . . Level 2 . | . . . . . Level 3 . | . . . . . Level 4 . | . . . . . Level 5 . | . . . . . High Security . | . . . . . Max Security . | . . . . . Squads Dispatched 2 | . 2 . . . Investigation . | . . . . . Extermination . | . . . . . Reinforcement 2 | . 2 . . . Assault . | . . . . . Garrison . | . . . . . Intercept . | . . . . . Construction Impeded . | . . . . . Haulers Reinforced . | . . . . . Stealth | -11 -10 -10 -10 -9 --------- Run | Scr Mat Min Exi Min Distress Signals 1 | . 1 . . . Communications Jammed . | . . . . . Distress Signals . | . . . . . Times Spotted 34 | . 8 5 . 21 Peak Tracking Total 19 | . 4 3 . 19 Tactical Retreats . | . . . . . Traps | -11 -10 -10 -10 -9 ------- Run | Scr Mat Min Exi Min Traps Triggered . | . . . . . Indirectly . | . . . . . Trap Hack Attempts . | . . . . . Triggered . | . . . . . Disarmed . | . . . . . Reprogrammed . | . . . . . Reused . | . . . . . Traps Extracted . | . . . . . Installed . | . . . . . Triggered . | . . . . . Machines | -11 -10 -10 -10 -9 ---------- Run | Scr Mat Min Exi Min Machines Disabled . | . . . . . Max in Single Turn . | . . . . . Machines Sabotaged . | . . . . . Garrisons Compromised . | . . . . . Overloaded Fab Kills . | . . . . . Fab Network Shutdowns . | . . . . . Hacking | -11 -10 -10 -10 -9 --------- Run | Scr Mat Min Exi Min Machines Accessed 3 | . 2 . 1 . Terminals 2 | . 2 . . . Fabricators . | . . . . . Repair Stations . | . . . . . Recycling Units . | . . . . . Scanalyzers . | . . . . . Garrison Access . | . . . . . Total Hacks 10 | . 9 . 1 . Successful 7 | . 6 . 1 . Failed 3 | . 3 . . . Catastrophic . | . . . . . Database Lockouts . | . . . . . Manual 9 | . 8 . 1 . Terminals 9 | . 9 . . . Fabricators . | . . . . . Repair Stations . | . . . . . Recycling Units . | . . . . . Scanalyzers . | . . . . . Garrison Access . | . . . . . Terminal Hacks 4 | . 3 . 1 . Terminal Index 1 | . 1 . . . Zone Layout 2 | . 2 . . . EX-Prototype ID Bank 1 | . . . 1 . Fabricator Hacks . | . . . . . Repair Station Hacks . | . . . . . Recycling Unit Hacks . | . . . . . Scanalyzer . | . . . . . Garrison Access Hacks . | . . . . . Unauthorized Hacks 7 | . 7 . . . Terminals 3 | . 3 . . . Track 2 | . 2 . . . Botnet 1 | . 1 . . . Fabricators . | . . . . . Repair Stations . | . . . . . Recycling Units . | . . . . . Scanalyzers . | . . . . . Garrison Access . | . . . . . Data Cores Recovered . | . . . . . Used . | . . . . . Hacking Detections 2 | . 2 . . . Full Trace Events . | . . . . . Feedback Events . | . . . . . Feedback Blocked . | . . . . . Robot Schematics Acquired . | . . . . . Robots Built . | . . . . . Matter . | . . . . . Time . | . . . . . Total Robot Build Rating . | . . . . . Part Schematics Acquired . | . . . . . Parts Built . | . . . . . Matter . | . . . . . Time . | . . . . . Total Part Build Rating . | . . . . . Parts Repaired . | . . . . . Time . | . . . . . Parts Recycled . | . . . . . Recycled Matter . | . . . . . Retrieved Matter . | . . . . . Retrieved Components . | . . . . . Parts Scanalyzed . | . . . . . Part Schematics Acquired . | . . . . . Parts Damaged . | . . . . . Bothacking | -11 -10 -10 -10 -9 ------------ Run | Scr Mat Min Exi Min Used RIF Installer . | . . . . . Robots Hacked . | . . . . . Non-combat . | . . . . . Combat . | . . . . . Robot Hacks Applied . | . . . . . Relay Couplers Released . | . . . . . Robots Rewired 5 | . . . 5 . Allies Hacked . | . . . . . Hacks Repelled . | . . . . . Allies | -11 -10 -10 -10 -9 -------- Run | Scr Mat Min Exi Min Total Allies 6 | . . 1 5 . Largest Group 5 | . . 1 5 5 Highest-Rated Group 53 | . . 31 53 53 Highest-Rated Ally 31 | . . 31 21 21 Total Orders . | . . . . . Ally Attacks 7 | . . . . 7 Total Damage 102 | . . . . 102 Kills 2 | . . . . 2 Allies Corrupted . | . . . . . Allies Melted . | . . . . . Intel | -11 -10 -10 -10 -9 ------- Run | Scr Mat Min Exi Min Robot Analysis Total . | . . . . . Derelict Logs Recovered 2 | . . 2 . . Drone Launches . | . . . . . Drone Recoveries . | . . . . . Exploration | -11 -10 -10 -10 -9 ------------- Run | Scr Mat Min Exi Min Turns Passed 1394 | 67 282 527 490 28 Spaces Moved 1138 | 48 212 443 422 13 Core 2 | 2 . . . . Treads . | . . . . . Legs . | . . . . . Wheels 1136 | 46 212 443 422 13 Hover . | . . . . . Flight . | . . . . . Fastest Speed 50 | 50 90 100 100 100 Average Speed 99 | 87 99 100 100 100 Slowest Speed 100 | 90 100 100 100 100 Overloaded Moves . | . . . . . Propulsion Burnouts . | . . . . . Robots Hopped . | . . . . . Cave-ins Triggered . | . . . . . Exploration Rate (%) 45 | 4 28 95 86 12 Regions Visited 4 Branch Regions 3 Pre-discovered Areas . | . . . . . Known Exits Taken . | . . . . . Unknown Exits Taken 4 | 1 1 1 1 . Scrap Searched 1 | . . 1 . . Spaces Dug . | . . . . . Terrain Destroyed 36 | . . . . 36 Melee . | . . . . . Projectile . | . . . . . AOE 36 | . . . . 36 Actions | -11 -10 -10 -10 -9 --------- Run | Scr Mat Min Exi Min Total 1275 | 62 244 479 469 21 Wait 8 | . 4 4 . . Move 1134 | 47 211 442 421 13 Hop . | . . . . . Pick Up 21 | 5 7 3 6 . Fast Attach 6 | 5 1 . . . Attach 6 | 1 1 3 1 . Detach . | . . . . . Swap 5 | . 1 1 1 2 Drop 1 | . . . 1 . Fire 65 | 4 19 26 10 6 Melee . | . . . . . Ram . | . . . . . Kick . | . . . . . Crush . | . . . . . Escape Stasis . | . . . . . Rewire 29 | . . . 29 . Trap . | . . . . . Miscellaneous . | . . . . . Route ------- -11/Scrapyard -10/Materials -10/Mines (discovered 2 exits: [*Mat] / *Exi) -10/Exiles -9/Mines History --------- Turn | Location | Event 17 | -11/Scrapyard | Discovered new exit (range 14) 68 | -11/Scrapyard | Entered Materials 298 | -10/Materials | Discovered new exit (range 19) 318 | -10/Materials | Build established: Mutant 350 | -10/Materials | Entered Mines 405 | -10/Mines | Discovered new exit (range 8) 515 | -10/Mines | Learned Materials trap positions 516 | -10/Mines | Lost 3 parts (1p2w) 586 | -10/Mines | Learned Materials stockpile data 643 | -10/Mines | Received a Mining Laser from a helpful Derelict 869 | -10/Mines | Deemed a non-threat by the Exiles lab entrance 869 | -10/Mines | Discovered new exit (range 5) 877 | -10/Mines | Entered Exiles 877 | -10/Exiles | Found Exiles lab destroyed 1226 | -10/Exiles | Opened EX-Vault 1236 | -10/Exiles | Found Trap Reconfigurator 1349 | -10/Exiles | Discovered new exit (range 14) 1367 | -10/Exiles | Entered Mines 1367 | -9/Mines | Accompanied by 5 allies 1374 | -9/Mines | Assembled infested the area 1379 | -9/Mines | Assisted by a Guerilla fighting off Assembled 1380 | -9/Mines | Core integrity fell below 50% 1394 | -9/Mines | Core integrity fell below 20% 1395 | -9/Mines | Destroyed by D-53 Grenadier with Mini Grenade Launcher Last Messages --------------- 01386_ as-47038 destroyed. 01386_ Med. Laser destroyed. 01387_ HV Slug penetrates as-43908. 01387_ as-43908 suffers critical hit. 01387_ as-43908 knocked back. 01388_ as-97230 destroyed. 01388_ as-85934 destroyed. 01388_ Mercenary 1d destroyed. 01390_ IM-YZC(h) system corrupted by crushing effect. 01390_ as-04374 destroyed. 01390_ as-72493 destroyed. 01390_ as-43908 destroyed. 01390_ Destroyed Asb. F-torch. 01391_ IM-YZC(h) system terminally corrupted. 01391_ The unstable cave ceiling collapses. 01392_ as-98115 destroyed. 01392_ as-70117 destroyed. 01392_ as-76488 destroyed. 01392_ as-75209 destroyed. 01393_ as-56867 destroyed. Map ----- +----------------------------------------------------+ | | | | | | | | | | | | | | | | | | | | | | | | | | | ?????????????????????????????????????????????????? | | ?????????????????????????????????????????????????? | | ???????????????????????????????????????#?????????? | | ?????????????????????????????????????? ?????????? | | ?????????????????????????????????????? ??????????? | | ????????????????#???##?##???????????? #?????? #?? | | ???????????? ??## ### ## ##?????????? #???? ?? | | ???????????? # ###??????? #?? #? | | ??????????? #??????# ## #?? | | ??????????? = ####### #????? | | ?????????? % =%*## #?????? | | ?????????? !* *% [! #????????? | | ?????????? @ %## ##????????? | | ??????????# ### #?????????? | | ??????????# d ## ### #?##### #?????????? | | ??????????? u???###??# #??????# #????????? | | ???????????# ???????????# #???????# #???????? | | ????????????#??????????????# #???????? #??????? | | ???????????????????????????# #????????? #??????? | | ???????????????????????????# #?????????? ##??????? | | ???????????????????????????#$#??????????##???????? | | ???????????????????????????? ????????????????????? | | ????????????????????????????#????????????????????? | | ?????????????????????????????????????????????????? | | ?????????????????????????????????????????????????? | | ?????????????????????????????????????????????????? | | ?????????????????????????????????????????????????? | | ?????????????????????????????????????????????????? | | ?????????????????????????????????????????????????? | | ?????????????????????????????????????????????????? | | ?????????????????????????????????????????????????? | | ?????????????????????????????????????????????????? | | ?????????????????????????????????????????????????? | | ?????????????????????????????????????????????????? | | ?????????????????????????????????????????????????? | | ?????????????????????????????????????????????????? | | ?????????????????????????????????????????????????? | +----------------------------------------------------+ Best States ------------- Heat Dissipation 25 Energy Generation 10 Energy Capacity 250 Matter Stores 300 Matter Capacity 300 Sight Range 16 Terrain Scan Density 10 Evasion (%) 44 Item Schematics ----------------- None Robot Schematics ------------------ None Fabricated ------------ Nothing Alien Tech Used ----------------- None Achievements -------------- None Challenges ------------ None Game ------ Seed FortressLatentFilter Manual? 0 Play Time 00:09:32 Cumulative 847.9 hours Start 2019.12.09 @ 01:48:16 End 2019.12.09 @ 01:57:40 Sessions 1 Manual Loads 0 Difficulty Rogue Special Mode None Game No. 333 Rogue 333 Adventurer 0 Explorer 0 Win Type - Total 21 Types 11/1/7/0/0/0/2 Lore% 95 Gallery% 96 Achievement% 80 Wizard Run 0 Options --------- ASCII 0 Keyboard 0 Movement Vi Keybinds 0 Fullscreen 0 Font 12/Crisp Map View 76x50 Tactical HUD 1 Map Filters NONE Filters NONE Steam 1 RUN: 21049425-a1b3-476e-b10b-d86c239b9d2e